[Event "*** Titled Tuesday 3|2 Blitz"]
[Site "Chess.com"]
[Date "2016.07.05"]
[Round "3"]
[White "Astaneh"]
[Black "sorito"]
[Result "1-0"]
[WhiteElo "2470"]
[BlackElo "2302"]
[TimeControl "180+2"]
[EndTime "11:36:21 PDT"]
[Termination "Astaneh won by resignation"]

1. d4 {[%clk 0:03:01.9]} 1... Nf6 {[%clk 0:03:00.2]} 2. c4 {[%clk 0:03:01.8]}
2... e6 {[%clk 0:03:01.7]} 3. Nf3 {[%clk 0:03:01.1]} 3... Bb4+ {[%clk
0:02:56.5]} 4. Nbd2 {[%clk 0:02:59.3]} 4... O-O {[%clk 0:02:55.2]} 5. a3 {[%clk
0:02:56.5]} 5... Bxd2+ {[%clk 0:02:47]} 6. Qxd2 {[%clk 0:02:58.4]} 6... b6
{[%clk 0:02:47.3]} 7. e3 {[%clk 0:02:58.7]} 7... Bb7 {[%clk 0:02:48.6]} 8. b4
{[%clk 0:02:59.9]} 8... d5 {[%clk 0:02:46.3]} 9. c5 {[%clk 0:02:37.3]} 9... a5
{[%clk 0:02:41.7]} 10. b5 {[%clk 0:02:32.1]} 10... c6 {[%clk 0:02:33.1]} 11.
cxb6 {[%clk 0:01:29.6]} 11... Qxb6 {[%clk 0:02:14.6]} 12. a4 {[%clk 0:01:27.6]}
12... cxb5 {[%clk 0:02:04]} 13. axb5 {[%clk 0:01:17.6]} 13... Nbd7 {[%clk
0:01:59.8]} 14. Ba3 {[%clk 0:01:15.9]} 14... Rfc8 {[%clk 0:01:59.6]} 15. Qb2
{[%clk 0:01:12.8]} 15... a4 {[%clk 0:02:00.3]} 16. Bd3 {[%clk 0:01:05.1]} 16...
Ne4 {[%clk 0:02:00.3]} 17. O-O {[%clk 0:01:02]} 17... Nd6 {[%clk 0:02:01.9]} 18.
Rfc1 {[%clk 0:00:40.2]} 18... Nc4 {[%clk 0:01:59.5]} 19. Bxc4 {[%clk 0:00:41.5]}
19... dxc4 {[%clk 0:02:00.4]} 20. Nd2 {[%clk 0:00:40.3]} 20... c3 {[%clk
0:01:44.2]} 21. Rxc3 {[%clk 0:00:40.8]} 21... Rxc3 {[%clk 0:01:46]} 22. Qxc3
{[%clk 0:00:42.7]} 22... Qxb5 {[%clk 0:01:47.6]} 23. Rb1 {[%clk 0:00:37.3]}
23... Qc6 {[%clk 0:01:30.7]} 24. Qxc6 {[%clk 0:00:38.1]} 24... Bxc6 {[%clk
0:01:32.6]} 25. f3 {[%clk 0:00:38.4]} 25... Rb8 {[%clk 0:01:28.5]} 26. Rxb8+
{[%clk 0:00:33.7]} 26... Nxb8 {[%clk 0:01:30.4]} 27. Kf2 {[%clk 0:00:35.3]}
27... f6 {[%clk 0:01:31.8]} 28. Ke2 {[%clk 0:00:36.3]} 28... Bb5+ {[%clk
0:01:33.3]} 29. Kd1 {[%clk 0:00:37]} 29... Nc6 {[%clk 0:01:34.9]} 30. Kc2 {[%clk
0:00:38.2]} 30... Kf7 {[%clk 0:01:35.2]} 31. Kc3 {[%clk 0:00:39.8]} 31... g5
{[%clk 0:01:35.4]} 32. Ne4 {[%clk 0:00:40.3]} 32... Bf1 {[%clk 0:01:30.3]} 33.
g3 {[%clk 0:00:39.4]} 33... Bg2 {[%clk 0:01:31.6]} 34. Nd6+ {[%clk 0:00:40.5]}
34... Kg6 {[%clk 0:01:32.8]} 35. f4 {[%clk 0:00:41.2]} 35... h6 {[%clk
0:01:33.6]} 36. e4 {[%clk 0:00:37.1]} 36... Bf1 {[%clk 0:01:32.4]} 37. f5+
{[%clk 0:00:37]} 37... exf5 {[%clk 0:01:33.5]} 38. Nxf5 {[%clk 0:00:37.8]} 38...
Bg2 {[%clk 0:01:32.4]} 39. Kd3 {[%clk 0:00:36]} 39... Bf1+ {[%clk 0:01:32.9]}
40. Ke3 {[%clk 0:00:36.9]} 40... Na5 {[%clk 0:01:33.5]} 41. Nd6 {[%clk
0:00:34.4]} 41... h5 {[%clk 0:01:32.3]} 42. d5 {[%clk 0:00:33]} 42... Ba6 {[%clk
0:01:18.9]} 43. Bb4 {[%clk 0:00:27.1]} 43... Nc4+ {[%clk 0:01:11.1]} 44. Nxc4
{[%clk 0:00:28.3]} 44... Bxc4 {[%clk 0:01:13]} 45. Kd4 {[%clk 0:00:28.9]} 45...
Be2 {[%clk 0:01:03.9]} 46. e5 {[%clk 0:00:28.1]} 46... fxe5+ {[%clk 0:01:04]}
47. Kxe5 {[%clk 0:00:30]} 47... Kf7 {[%clk 0:01:04.2]} 48. Kf5 {[%clk
0:00:28.6]} 48... g4 {[%clk 0:01:05.1]} 49. Kg5 {[%clk 0:00:27.1]} 49... Bf3
{[%clk 0:01:06.5]} 50. d6 {[%clk 0:00:28]} 50... Ke6 {[%clk 0:01:07.9]} 51. Kxh5
{[%clk 0:00:29.4]} 51... Bd1 {[%clk 0:01:09.3]} 52. Kh4 {[%clk 0:00:29.7]} 52...
Kd7 {[%clk 0:01:10.8]} 53. Ba3 {[%clk 0:00:30.3]} 53... Be2 {[%clk 0:01:12.1]}
54. h3 {[%clk 0:00:31.5]} 54... gxh3 {[%clk 0:01:13.1]} 55. Kxh3 {[%clk
0:00:33.4]} 55... Ke6 {[%clk 0:01:10.2]} 56. Kh4 {[%clk 0:00:33]} 56... Bb5
{[%clk 0:01:08.5]} 57. Kg5 {[%clk 0:00:33]} 57... Kf7 {[%clk 0:01:09.5]} 58. Kh5
{[%clk 0:00:29.5]} 58... Bd7 {[%clk 0:01:08.4]} 59. Kg5 {[%clk 0:00:28.4]} 59...
Kg7 {[%clk 0:01:09.1]} 60. Bb2+ {[%clk 0:00:28.9]} 60... Kf7 {[%clk 0:01:10]}
61. Kh5 {[%clk 0:00:29]} 61... Bf5 {[%clk 0:01:08.1]} 62. g4 {[%clk 0:00:29.1]}
62... Bd7 {[%clk 0:01:10]} 63. g5 {[%clk 0:00:29.4]} 63... Be8 {[%clk 0:01:10]}
64. Kh6 {[%clk 0:00:25.1]} 64... Kg8 {[%clk 0:01:10.5]} 65. g6 {[%clk
0:00:19.9]} 65... Bd7 {[%clk 0:01:10.9]} 66. Kg5 {[%clk 0:00:21]} 66... Bc6
{[%clk 0:01:11.6]} 67. Kf6 {[%clk 0:00:22.4]} 67... Bb5 {[%clk 0:01:11.5]} 68.
Ke7 {[%clk 0:00:23.2]} 68... a3 {[%clk 0:01:12.9]} 69. Ba1 {[%clk 0:00:23.3]}
69... a2 {[%clk 0:01:06.2]} 70. d7 {[%clk 0:00:24.3]} 70... Bxd7 {[%clk
0:01:07.5]} 71. Kxd7 {[%clk 0:00:26.2]} 71... Kf8 {[%clk 0:01:09]} 72. Kc6
{[%clk 0:00:26.7]} 72... Ke7 {[%clk 0:01:10]} 73. Kb5 {[%clk 0:00:27.2]} 73...
Kf8 {[%clk 0:01:05.2]} 74. Ka4 {[%clk 0:00:28]} 74... Kg8 {[%clk 0:00:56.1]} 75.
Kb3 {[%clk 0:00:29.2]} 75... Kf8 {[%clk 0:00:57]} 76. Kxa2 {[%clk 0:00:31.1]}
1-0

[Event "*** Titled Tuesday 3|2 Blitz"]
[Site "Chess.com"]
[Date "2016.07.05"]
[Round "3"]
[White "Schemato"]
[Black "hypert"]
[Result "1-0"]
[WhiteElo "2199"]
[BlackElo "2303"]
[TimeControl "180+2"]
[EndTime "11:36:38 PDT"]
[Termination "Schemato won by resignation"]

1. c4 {[%clk 0:03:01.9]} 1... e5 {[%clk 0:03:00.1]} 2. g3 {[%clk 0:03:02.7]}
2... Nf6 {[%clk 0:03:01.1]} 3. Bg2 {[%clk 0:03:03.7]} 3... d5 {[%clk 0:03:02.3]}
4. cxd5 {[%clk 0:03:04.4]} 4... Nxd5 {[%clk 0:03:03.6]} 5. Nf3 {[%clk 0:03:06]}
5... Nc6 {[%clk 0:03:03.3]} 6. O-O {[%clk 0:03:05.9]} 6... Nb6 {[%clk
0:03:03.6]} 7. d3 {[%clk 0:03:06.1]} 7... Be7 {[%clk 0:03:04.6]} 8. a3 {[%clk
0:03:06.9]} 8... O-O {[%clk 0:03:05.4]} 9. Nbd2 {[%clk 0:03:07.6]} 9... Re8
{[%clk 0:03:06.6]} 10. b4 {[%clk 0:03:08]} 10... Bf8 {[%clk 0:03:07.1]} 11. Bb2
{[%clk 0:03:09.1]} 11... a5 {[%clk 0:03:03.3]} 12. b5 {[%clk 0:03:09.6]} 12...
Nd4 {[%clk 0:03:03.9]} 13. Nc4 {[%clk 0:02:54.9]} 13... f6 {[%clk 0:02:37.5]}
14. Nxb6 {[%clk 0:02:53.3]} 14... cxb6 {[%clk 0:02:30.7]} 15. e3 {[%clk
0:02:51.2]} 15... Nxf3+ {[%clk 0:02:10.5]} 16. Bxf3 {[%clk 0:02:53.1]} 16... a4
{[%clk 0:02:09.9]} 17. Qc2 {[%clk 0:02:45.3]} 17... Bh3 {[%clk 0:02:04.3]} 18.
Rfd1 {[%clk 0:02:34.3]} 18... Qd7 {[%clk 0:02:04.6]} 19. d4 {[%clk 0:02:24.4]}
19... exd4 {[%clk 0:00:25.4]} 20. Rxd4 {[%clk 0:02:22.7]} 20... Qxb5 {[%clk
0:00:26.2]} 21. Bd5+ {[%clk 0:01:21.9]} 21... Be6 {[%clk 0:00:25.6]} 22. Be4
{[%clk 0:01:09.5]} 22... f5 {[%clk 0:00:25.5]} 23. Bxb7 {[%clk 0:01:05.1]} 23...
Rad8 {[%clk 0:00:25.7]} 24. Rc1 {[%clk 0:00:34.4]} 24... Rxd4 {[%clk 0:00:22.4]}
25. Bxd4 {[%clk 0:00:34.9]} 25... Bd5 {[%clk 0:00:21.1]} 26. Bxd5+ {[%clk
0:00:34.3]} 26... Qxd5 {[%clk 0:00:23]} 27. Qc4 {[%clk 0:00:30.3]} 27... Qxc4
{[%clk 0:00:23.4]} 28. Rxc4 {[%clk 0:00:32.2]} 28... b5 {[%clk 0:00:25]} 29. Rc7
{[%clk 0:00:28.9]} 29... Bxa3 {[%clk 0:00:23.9]} 30. Rxg7+ {[%clk 0:00:28.6]}
30... Kf8 {[%clk 0:00:25.5]} 31. Rxh7 {[%clk 0:00:25.4]} 31... Bd6 {[%clk
0:00:24.8]} 32. Rd7 {[%clk 0:00:20.2]} 32... Be7 {[%clk 0:00:24.7]} 33. Ra7
{[%clk 0:00:20.5]} 33... Rb8 {[%clk 0:00:24.8]} 34. Kf1 {[%clk 0:00:18.9]} 34...
a3 {[%clk 0:00:26.1]} 35. Ke2 {[%clk 0:00:16.8]} 35... b4 {[%clk 0:00:27.5]} 36.
Be5 {[%clk 0:00:14.6]} 36... Rc8 {[%clk 0:00:27.3]} 37. Kd3 {[%clk 0:00:12.6]}
37... b3 {[%clk 0:00:27.6]} 38. Rb7 {[%clk 0:00:09.2]} 38... b2 {[%clk
0:00:20.7]} 39. Bxb2 {[%clk 0:00:09.5]} 39... axb2 {[%clk 0:00:22.6]} 40. Rxb2
{[%clk 0:00:11]} 40... Rd8+ {[%clk 0:00:23.8]} 41. Ke2 {[%clk 0:00:11.6]} 41...
Kf7 {[%clk 0:00:25.2]} 42. Kf3 {[%clk 0:00:12.2]} 42... Kg6 {[%clk 0:00:25.6]}
43. h4 {[%clk 0:00:13.1]} 43... Bf6 {[%clk 0:00:26.2]} 44. Rb6 {[%clk
0:00:13.4]} 44... Rh8 {[%clk 0:00:22.3]} 45. Kf4 {[%clk 0:00:13]} 45... Rh7
{[%clk 0:00:23.1]} 46. f3 {[%clk 0:00:13.5]} 46... Rh8 {[%clk 0:00:23.3]} 47. e4
{[%clk 0:00:14.2]} 47... fxe4 {[%clk 0:00:24]} 48. fxe4 {[%clk 0:00:16.1]} 48...
Kf7 {[%clk 0:00:25.3]} 49. e5 {[%clk 0:00:15.5]} 49... Be7 {[%clk 0:00:26.6]}
50. Rc6 {[%clk 0:00:14.1]} 50... Ra8 {[%clk 0:00:26.6]} 51. Kf5 {[%clk 0:00:12]}
51... Ra3 {[%clk 0:00:27]} 52. Rg6 {[%clk 0:00:10.5]} 52... Rf3+ {[%clk
0:00:27.5]} 53. Ke4 {[%clk 0:00:11]} 53... Rf1 {[%clk 0:00:26.6]} 54. h5 {[%clk
0:00:12]} 54... Ba3 {[%clk 0:00:22.7]} 55. g4 {[%clk 0:00:12.5]} 55... Bb2
{[%clk 0:00:23.7]} 56. e6+ {[%clk 0:00:13.1]} 56... Ke7 {[%clk 0:00:24.6]} 57.
h6 {[%clk 0:00:13.9]} 57... Rh1 {[%clk 0:00:25.7]} 58. g5 {[%clk 0:00:14.9]}
58... Rh5 {[%clk 0:00:26.5]} 59. Kf5 {[%clk 0:00:15.4]} 59... Rh1 {[%clk
0:00:26.3]} 60. Rg7+ {[%clk 0:00:16.6]} 60... Kf8 {[%clk 0:00:23.7]} 61. e7+
{[%clk 0:00:17]} 61... Ke8 {[%clk 0:00:24.7]} 62. Kg6 {[%clk 0:00:16.8]} 62...
Re1 {[%clk 0:00:20.5]} 63. h7 {[%clk 0:00:16.3]} 63... Bxg7 {[%clk 0:00:20.3]}
64. Kxg7 {[%clk 0:00:17.3]} 64... Rxe7+ {[%clk 0:00:21.4]} 65. Kg8 {[%clk
0:00:18.5]} 65... Kd7 {[%clk 0:00:21.8]} 66. g6 {[%clk 0:00:19.7]} 66... Ke6
{[%clk 0:00:21.6]} 67. h8=Q {[%clk 0:00:18]} 67... Re8+ {[%clk 0:00:23]} 68. Kg7
{[%clk 0:00:19]} 68... Rxh8 {[%clk 0:00:24]} 69. Kxh8 {[%clk 0:00:20.4]} 69...
Kf6 {[%clk 0:00:25.9]} 70. g7 {[%clk 0:00:22.3]} 1-0

[Event "*** Titled Tuesday 3|2 Blitz"]
[Site "Chess.com"]
[Date "2016.07.05"]
[Round "3"]
[White "Saitama_Hero"]
[Black "oskariot"]
[Result "0-1"]
[WhiteElo "2102"]
[BlackElo "2271"]
[TimeControl "180+2"]
[EndTime "11:36:39 PDT"]
[Termination "oskariot won by resignation"]

1. d4 {[%clk 0:03:01.9]} 1... Nf6 {[%clk 0:02:55.1]} 2. c4 {[%clk 0:03:02.4]}
2... c5 {[%clk 0:02:45.6]} 3. d5 {[%clk 0:03:02.5]} 3... b5 {[%clk 0:02:47]} 4.
cxb5 {[%clk 0:03:02.8]} 4... a6 {[%clk 0:02:48.3]} 5. b6 {[%clk 0:03:04.4]} 5...
e6 {[%clk 0:02:48.1]} 6. Nc3 {[%clk 0:03:00.6]} 6... Nxd5 {[%clk 0:02:48.9]} 7.
Nxd5 {[%clk 0:03:02.5]} 7... exd5 {[%clk 0:02:50.8]} 8. Qxd5 {[%clk 0:03:04.4]}
8... Nc6 {[%clk 0:02:52.1]} 9. e4 {[%clk 0:03:05.9]} 9... Be7 {[%clk 0:02:52.8]}
10. Bc4 {[%clk 0:03:07.1]} 10... O-O {[%clk 0:02:53.5]} 11. Nf3 {[%clk
0:03:08.6]} 11... Rb8 {[%clk 0:02:54.8]} 12. O-O {[%clk 0:03:09.7]} 12... Rxb6
{[%clk 0:02:56]} 13. Qh5 {[%clk 0:03:07.2]} 13... d6 {[%clk 0:01:53.8]} 14. Rd1
{[%clk 0:02:58.1]} 14... Be6 {[%clk 0:01:37.8]} 15. Bxe6 {[%clk 0:02:37.1]}
15... fxe6 {[%clk 0:01:37.3]} 16. b3 {[%clk 0:02:38.6]} 16... Bf6 {[%clk
0:01:31.1]} 17. Rb1 {[%clk 0:02:37.8]} 17... Nd4 {[%clk 0:01:32.2]} 18. Be3
{[%clk 0:02:27.8]} 18... Nxf3+ {[%clk 0:01:26.9]} 19. Qxf3 {[%clk 0:02:29.7]}
19... Bd4 {[%clk 0:01:26.4]} 20. Qh3 {[%clk 0:02:24.9]} 20... Qf6 {[%clk
0:01:18.9]} 21. Bxd4 {[%clk 0:02:19.3]} 21... cxd4 {[%clk 0:01:20.8]} 22. Rd2
{[%clk 0:02:17.6]} 22... Rc6 {[%clk 0:01:19.2]} 23. Qd3 {[%clk 0:02:02.9]} 23...
e5 {[%clk 0:01:16.3]} 24. Rc2 {[%clk 0:01:44.4]} 24... Rfc8 {[%clk 0:01:14.5]}
25. Rbc1 {[%clk 0:01:44.2]} 25... Qf4 {[%clk 0:00:12.4]} 26. g3 {[%clk
0:01:32.4]} 26... Qxc1+ {[%clk 0:00:12.9]} 27. Rxc1 {[%clk 0:01:34.3]} 27...
Rxc1+ {[%clk 0:00:14.8]} 28. Kg2 {[%clk 0:01:35.9]} 28... R8c6 {[%clk
0:00:13.4]} 29. b4 {[%clk 0:01:06.2]} 29... R1c3 {[%clk 0:00:13.6]} 30. Qd1
{[%clk 0:01:01.5]} 30... Rc8 {[%clk 0:00:10.9]} 31. a4 {[%clk 0:01:01.8]} 31...
Rf8 {[%clk 0:00:10.1]} 32. b5 {[%clk 0:01:00]} 32... axb5 {[%clk 0:00:09.4]} 33.
axb5 {[%clk 0:01:01.9]} 33... d3 {[%clk 0:00:09.9]} 34. b6 {[%clk 0:00:54.9]}
34... Rc2 {[%clk 0:00:09.9]} 35. Qxd3 {[%clk 0:00:54.3]} 35... Rfxf2+ {[%clk
0:00:10.5]} 36. Kh3 {[%clk 0:00:55.7]} 36... h5 {[%clk 0:00:09.5]} 37. Kh4
{[%clk 0:00:49.1]} 37... Rxh2+ {[%clk 0:00:10.8]} 38. Kg5 {[%clk 0:00:49.9]}
38... Kh7 {[%clk 0:00:06.3]} 39. Qxd6 {[%clk 0:00:45.4]} 39... Rhg2 {[%clk
0:00:05]} 40. Qg6+ {[%clk 0:00:43.7]} 40... Kg8 {[%clk 0:00:05.7]} 41. Qe8+
{[%clk 0:00:45.3]} 41... Kh7 {[%clk 0:00:07]} 42. Qxh5+ {[%clk 0:00:46.7]} 42...
Kg8 {[%clk 0:00:08.6]} 43. Qe8+ {[%clk 0:00:44.4]} 43... Kh7 {[%clk 0:00:09.6]}
44. Qxe5 {[%clk 0:00:41.8]} 44... Rb2 {[%clk 0:00:09.5]} 45. Qd6 {[%clk
0:00:25.5]} 45... Rb3 {[%clk 0:00:09.2]} 46. Qg6+ {[%clk 0:00:25]} 46... Kh8
{[%clk 0:00:07]} 47. Qh5+ {[%clk 0:00:16.7]} 47... Kg8 {[%clk 0:00:08.2]} 48.
Qe8+ {[%clk 0:00:17.8]} 48... Kh7 {[%clk 0:00:09.7]} 49. Qg6+ {[%clk 0:00:15.8]}
49... Kh8 {[%clk 0:00:10.4]} 50. Kf5 {[%clk 0:00:16.7]} 50... Rgxg3 {[%clk
0:00:06.4]} 51. Qh5+ {[%clk 0:00:10.8]} 51... Kg8 {[%clk 0:00:07.6]} 52. Qe8+
{[%clk 0:00:12.6]} 52... Kh7 {[%clk 0:00:09]} 53. Qe6 {[%clk 0:00:12.4]} 53...
Rgf3+ {[%clk 0:00:09.4]} 54. Ke5 {[%clk 0:00:13.8]} 54... Rb5+ {[%clk
0:00:09.4]} 55. Kd4 {[%clk 0:00:14.3]} 55... Rb4+ {[%clk 0:00:10.5]} 56. Kc5
{[%clk 0:00:15]} 56... Rfb3 {[%clk 0:00:11.1]} 57. Qf5+ {[%clk 0:00:13.4]} 57...
Kg8 {[%clk 0:00:12]} 58. Qd5+ {[%clk 0:00:14.4]} 58... Kh7 {[%clk 0:00:13]} 59.
Qh5+ {[%clk 0:00:15.1]} 59... Kg8 {[%clk 0:00:14.3]} 60. e5 {[%clk 0:00:16.4]}
60... Rxb6 {[%clk 0:00:14]} 61. Kd5 {[%clk 0:00:16.6]} 61... R3b5+ {[%clk
0:00:14.9]} 62. Ke4 {[%clk 0:00:16.2]} 62... Rb4+ {[%clk 0:00:16.2]} 63. Kf5
{[%clk 0:00:17.5]} 63... g6+ {[%clk 0:00:17.7]} 64. Qxg6+ {[%clk 0:00:18.1]}
64... Rxg6 {[%clk 0:00:19]} 65. Kxg6 {[%clk 0:00:20]} 65... Kf8 {[%clk
0:00:20.9]} 0-1

[Event "*** Titled Tuesday 3|2 Blitz"]
[Site "Chess.com"]
[Date "2016.07.05"]
[Round "3"]
[White "Cayse"]
[Black "Hikaru"]
[Result "1/2-1/2"]
[WhiteElo "2565"]
[BlackElo "2995"]
[TimeControl "180+2"]
[EndTime "11:39:09 PDT"]
[Termination "Game drawn - insufficient material"]

1. e4 {[%clk 0:03:00.9]} 1... e5 {[%clk 0:02:58.7]} 2. Nf3 {[%clk 0:03:01.5]}
2... Nc6 {[%clk 0:03:00.2]} 3. Nc3 {[%clk 0:03:02.1]} 3... Nf6 {[%clk 0:03:01]}
4. d4 {[%clk 0:03:03.1]} 4... exd4 {[%clk 0:03:02.9]} 5. Nxd4 {[%clk 0:03:03.9]}
5... Bb4 {[%clk 0:03:00.9]} 6. Nxc6 {[%clk 0:03:04.4]} 6... bxc6 {[%clk
0:03:02.8]} 7. Bd3 {[%clk 0:03:05.5]} 7... O-O {[%clk 0:03:01.7]} 8. O-O {[%clk
0:03:06.2]} 8... d5 {[%clk 0:03:03.4]} 9. exd5 {[%clk 0:03:07.2]} 9... cxd5
{[%clk 0:03:05.3]} 10. h3 {[%clk 0:03:08.2]} 10... c6 {[%clk 0:03:01.9]} 11. Qf3
{[%clk 0:03:08.6]} 11... Rb8 {[%clk 0:03:03.2]} 12. Bf4 {[%clk 0:03:07.4]} 12...
Bd6 {[%clk 0:03:03.9]} 13. b3 {[%clk 0:03:08.5]} 13... Rb4 {[%clk 0:03:05.4]}
14. Bxd6 {[%clk 0:03:01]} 14... Qxd6 {[%clk 0:03:07.3]} 15. Rfe1 {[%clk
0:03:01.8]} 15... Be6 {[%clk 0:03:05.7]} 16. Rad1 {[%clk 0:02:52.5]} 16... Rf4
{[%clk 0:03:00.2]} 17. Qg3 {[%clk 0:02:43.4]} 17... Qb8 {[%clk 0:02:30.4]} 18.
a3 {[%clk 0:02:07.3]} 18... Nd7 {[%clk 0:02:20.9]} 19. Ne2 {[%clk 0:01:59.8]}
19... Rf6 {[%clk 0:02:17.4]} 20. Qe3 {[%clk 0:01:59.1]} 20... c5 {[%clk
0:02:14.2]} 21. Ng3 {[%clk 0:02:00]} 21... g6 {[%clk 0:02:04.5]} 22. Be2 {[%clk
0:01:28]} 22... Qf4 {[%clk 0:02:01.4]} 23. Bb5 {[%clk 0:01:17.2]} 23... Qxe3
{[%clk 0:01:58.8]} 24. Rxe3 {[%clk 0:01:18]} 24... Nb6 {[%clk 0:02:00.1]} 25. c3
{[%clk 0:01:16.6]} 25... h5 {[%clk 0:01:44]} 26. a4 {[%clk 0:01:12]} 26... Rb8
{[%clk 0:01:38.8]} 27. Nf1 {[%clk 0:00:52.2]} 27... Nc8 {[%clk 0:01:35.4]} 28.
Nd2 {[%clk 0:00:48.5]} 28... Nd6 {[%clk 0:01:33.4]} 29. Be2 {[%clk 0:00:47.2]}
29... d4 {[%clk 0:01:20.1]} 30. cxd4 {[%clk 0:00:47.1]} 30... cxd4 {[%clk
0:01:22]} 31. Rd3 {[%clk 0:00:47.6]} 31... Rb4 {[%clk 0:01:22.8]} 32. Rc1 {[%clk
0:00:38]} 32... Bf5 {[%clk 0:01:21.8]} 33. Rf3 {[%clk 0:00:37.9]} 33... Re6
{[%clk 0:01:22.3]} 34. Bd3 {[%clk 0:00:37.7]} 34... h4 {[%clk 0:01:16.8]} 35.
Kf1 {[%clk 0:00:37.3]} 35... Kg7 {[%clk 0:01:17.7]} 36. Rc5 {[%clk 0:00:36.2]}
36... Re7 {[%clk 0:01:09.5]} 37. Rc6 {[%clk 0:00:32.8]} 37... Rd7 {[%clk
0:01:00.7]} 38. Bxf5 {[%clk 0:00:32.8]} 38... Nxf5 {[%clk 0:01:02]} 39. Rd3
{[%clk 0:00:22.3]} 39... Ne7 {[%clk 0:01:02.6]} 40. Rc4 {[%clk 0:00:22.7]} 40...
Rxc4 {[%clk 0:01:04.1]} 41. bxc4 {[%clk 0:00:21.3]} 41... Nc6 {[%clk 0:01:06]}
42. Nf3 {[%clk 0:00:22]} 42... f6 {[%clk 0:01:04.6]} 43. Nxh4 {[%clk 0:00:18.3]}
43... Ne5 {[%clk 0:01:05.1]} 44. Rd1 {[%clk 0:00:17.2]} 44... Nxc4 {[%clk
0:01:05.5]} 45. Ke2 {[%clk 0:00:17.4]} 45... Re7+ {[%clk 0:01:05.8]} 46. Kf1
{[%clk 0:00:17.8]} 46... Rd7 {[%clk 0:01:07.4]} 47. Ke2 {[%clk 0:00:17]} 47...
Nb2 {[%clk 0:01:08.7]} 48. Rc1 {[%clk 0:00:17.7]} 48... Nxa4 {[%clk 0:01:06.9]}
49. Kd3 {[%clk 0:00:17.1]} 49... Nc3 {[%clk 0:01:03.5]} 50. Nf3 {[%clk
0:00:17.5]} 50... a5 {[%clk 0:01:05.2]} 51. Ra1 {[%clk 0:00:17.3]} 51... Nd5
{[%clk 0:00:50.4]} 52. Rxa5 {[%clk 0:00:16.5]} 52... Nf4+ {[%clk 0:00:51.2]} 53.
Ke4 {[%clk 0:00:15.3]} 53... Nxg2 {[%clk 0:00:52.5]} 54. Nxd4 {[%clk 0:00:16.1]}
54... Re7+ {[%clk 0:00:53.8]} 55. Kf3 {[%clk 0:00:16.8]} 55... Ne1+ {[%clk
0:00:54.7]} 56. Kg3 {[%clk 0:00:18]} 56... Rd7 {[%clk 0:00:56.3]} 57. Ne6+
{[%clk 0:00:16.9]} 57... Kf7 {[%clk 0:00:57.9]} 58. Nc5 {[%clk 0:00:18.4]} 58...
Rd5 {[%clk 0:00:53.4]} 59. Ra7+ {[%clk 0:00:18.9]} 59... Ke8 {[%clk 0:00:53]}
60. Ne6 {[%clk 0:00:19.8]} 60... Re5 {[%clk 0:00:54.6]} 61. Ng7+ {[%clk
0:00:20]} 61... Kf8 {[%clk 0:00:56]} 62. f4 {[%clk 0:00:19.6]} 62... Re4 {[%clk
0:00:15.1]} 63. f5 {[%clk 0:00:20]} 63... gxf5 {[%clk 0:00:16.7]} 64. Nxf5
{[%clk 0:00:20.4]} 64... Nd3 {[%clk 0:00:18.4]} 65. Rf7+ {[%clk 0:00:18.9]}
65... Kxf7 {[%clk 0:00:17.7]} 66. Nd6+ {[%clk 0:00:19.9]} 66... Kg6 {[%clk
0:00:19.6]} 67. Nxe4 {[%clk 0:00:21.7]} 67... f5 {[%clk 0:00:21.5]} 68. Nf2
{[%clk 0:00:22.1]} 68... f4+ {[%clk 0:00:23.4]} 69. Kf3 {[%clk 0:00:23.3]} 69...
Ne5+ {[%clk 0:00:22.5]} 70. Kxf4 {[%clk 0:00:24.4]} 70... Nf7 {[%clk 0:00:24.4]}
71. Kg3 {[%clk 0:00:24.7]} 71... Ng5 {[%clk 0:00:25.8]} 72. h4 {[%clk
0:00:26.1]} 72... Nf7 {[%clk 0:00:27.4]} 73. Nd3 {[%clk 0:00:26.9]} 73... Nd6
{[%clk 0:00:28.2]} 74. Kg4 {[%clk 0:00:27.6]} 74... Kf6 {[%clk 0:00:27.6]} 75.
h5 {[%clk 0:00:27.9]} 75... Nf7 {[%clk 0:00:28.6]} 76. Kf4 {[%clk 0:00:28]}
76... Nh6 {[%clk 0:00:30.5]} 77. Nf2 {[%clk 0:00:28.8]} 77... Kg7 {[%clk
0:00:31.6]} 78. Ne4 {[%clk 0:00:29.3]} 78... Nf7 {[%clk 0:00:33]} 79. Kf5 {[%clk
0:00:29.8]} 79... Nh6+ {[%clk 0:00:34.2]} 80. Kf4 {[%clk 0:00:27.6]} 80... Nf7
{[%clk 0:00:36.1]} 81. Ng3 {[%clk 0:00:27.5]} 81... Kh7 {[%clk 0:00:37.2]} 82.
Nf5 {[%clk 0:00:27.3]} 82... Nd8 {[%clk 0:00:38.8]} 83. Kg5 {[%clk 0:00:26.1]}
83... Ne6+ {[%clk 0:00:40.1]} 84. Kf6 {[%clk 0:00:27.4]} 84... Nf4 {[%clk
0:00:41.2]} 85. h6 {[%clk 0:00:28.1]} 85... Nh3 {[%clk 0:00:42.4]} 86. Ke5
{[%clk 0:00:25.7]} 86... Ng5 {[%clk 0:00:43.2]} 87. Kf4 {[%clk 0:00:26.2]} 87...
Nf7 {[%clk 0:00:44.1]} 88. Kg4 {[%clk 0:00:27.9]} 88... Kg6 {[%clk 0:00:45]} 89.
Kf4 {[%clk 0:00:28.3]} 89... Kh7 {[%clk 0:00:37.5]} 90. Ne3 {[%clk 0:00:23.1]}
90... Kg6 {[%clk 0:00:19.5]} 91. Ng4 {[%clk 0:00:22.1]} 91... Nd6 {[%clk
0:00:20.6]} 92. Ne5+ {[%clk 0:00:20.2]} 92... Kh7 {[%clk 0:00:21.1]} 93. Kg5
{[%clk 0:00:18.2]} 93... Ne4+ {[%clk 0:00:22.3]} 94. Kh5 {[%clk 0:00:18.4]}
94... Nf6+ {[%clk 0:00:23.5]} 95. Kg5 {[%clk 0:00:19.7]} 95... Ne4+ {[%clk
0:00:25.4]} 96. Kf5 {[%clk 0:00:20.9]} 96... Nf6 {[%clk 0:00:08.9]} 97. Kxf6
{[%clk 0:00:20.9]} 97... Kxh6 {[%clk 0:00:02.2]} 1/2-1/2

[Event "*** Titled Tuesday 3|2 Blitz"]
[Site "Chess.com"]
[Date "2016.07.05"]
[Round "4"]
[White "mortalbovine"]
[Black "rithwik2002"]
[Result "0-1"]
[WhiteElo "1675"]
[BlackElo "1904"]
[TimeControl "180+2"]
[EndTime "11:43:07 PDT"]
[Termination "rithwik2002 won by resignation"]

1. d4 {[%clk 0:03:01.9]} 1... Nf6 {[%clk 0:02:59.7]} 2. c4 {[%clk 0:03:01.1]}
2... g6 {[%clk 0:02:59.1]} 3. Nc3 {[%clk 0:03:01.5]} 3... Bg7 {[%clk 0:03:00]}
4. e4 {[%clk 0:03:02.1]} 4... d6 {[%clk 0:02:58.7]} 5. f4 {[%clk 0:03:03.4]}
5... O-O {[%clk 0:02:56.8]} 6. Nf3 {[%clk 0:03:04.6]} 6... c5 {[%clk 0:02:54.6]}
7. d5 {[%clk 0:03:02.6]} 7... b5 {[%clk 0:02:54.7]} 8. b3 {[%clk 0:03:02.9]}
8... Nxe4 {[%clk 0:02:50]} 9. Nxe4 {[%clk 0:02:48.9]} 9... Bxa1 {[%clk
0:02:46.5]} 10. f5 {[%clk 0:02:42.8]} 10... Bxf5 {[%clk 0:02:45.4]} 11. Ng3
{[%clk 0:02:41.9]} 11... Bc3+ {[%clk 0:02:44.7]} 12. Bd2 {[%clk 0:02:40.5]}
12... Bxd2+ {[%clk 0:02:45.7]} 13. Qxd2 {[%clk 0:02:41.4]} 13... Bg4 {[%clk
0:02:44.4]} 14. Qf4 {[%clk 0:02:38.2]} 14... Bxf3 {[%clk 0:02:43.7]} 15. Qxf3
{[%clk 0:02:39]} 15... Qa5+ {[%clk 0:02:42.9]} 16. Kd1 {[%clk 0:02:35.1]} 16...
Qxa2 {[%clk 0:02:42]} 17. Ne4 {[%clk 0:02:36]} 17... bxc4 {[%clk 0:02:33.8]} 18.
bxc4 {[%clk 0:02:34.2]} 18... Nd7 {[%clk 0:02:33]} 19. Ng5 {[%clk 0:02:30.1]}
19... Rab8 {[%clk 0:02:29.6]} 20. Bd3 {[%clk 0:02:29.3]} 20... Rb1+ {[%clk
0:02:25.7]} 21. Bxb1 {[%clk 0:02:28.5]} 21... Qxb1+ {[%clk 0:02:27.6]} 22. Ke2
{[%clk 0:02:29.3]} 22... Qxh1 {[%clk 0:02:29.1]} 23. Qh3 {[%clk 0:02:30.2]}
23... Nf6 {[%clk 0:02:25.9]} 24. Qg3 {[%clk 0:02:21.1]} 24... Qc1 {[%clk
0:02:19.4]} 25. Nf3 {[%clk 0:02:21.2]} 25... Qxc4+ {[%clk 0:02:18.8]} 0-1